[Event "Late-Titled-Tuesday-Blitz-December-26-2023"]
[Site "Chess.com"]
[Date "2023.12.26"]
[Round "6"]
[White "Nick12772"]
[Black "Hoshka"]
[Result "1-0"]
[WhiteElo "2314"]
[BlackElo "2059"]
[TimeControl "180+1"]
[EndTime "15:05:52 PST"]
[Termination "Nick12772 won by resignation"]

1. Nf3 {[%clk 0:03:00.9]} 1... d5 {[%clk 0:02:59.1]} 2. g3 {[%clk 0:03:01.3]}
2... Nf6 {[%clk 0:02:58.5]} 3. Bg2 {[%clk 0:03:01.8]} 3... e6 {[%clk 0:02:55.3]}
4. O-O {[%clk 0:03:02.1]} 4... Be7 {[%clk 0:02:55]} 5. b3 {[%clk 0:03:02.5]}
5... O-O {[%clk 0:02:54.1]} 6. Bb2 {[%clk 0:03:03.4]} 6... c5 {[%clk 0:02:52.7]}
7. d4 {[%clk 0:03:03.5]} 7... cxd4 {[%clk 0:02:50.2]} 8. Nxd4 {[%clk 0:03:03]}
8... Nc6 {[%clk 0:02:50]} 9. Nd2 {[%clk 0:03:02.1]} 9... Bd7 {[%clk 0:02:46.9]}
10. c4 {[%clk 0:03:01.8]} 10... Nxd4 {[%clk 0:02:38.3]} 11. Bxd4 {[%clk
0:03:01.4]} 11... Bc6 {[%clk 0:02:38]} 12. Rc1 {[%clk 0:02:56.3]} 12... Qa5
{[%clk 0:02:30.3]} 13. cxd5 {[%clk 0:02:48.3]} 13... Bxd5 {[%clk 0:02:28.1]} 14.
Bxd5 {[%clk 0:02:46.8]} 14... Nxd5 {[%clk 0:02:27.5]} 15. Nc4 {[%clk 0:02:46.2]}
15... Qa6 {[%clk 0:02:21]} 16. Ne3 {[%clk 0:02:40.1]} 16... Rfd8 {[%clk
0:02:16.7]} 17. Qc2 {[%clk 0:01:59.8]} 17... Nb4 {[%clk 0:02:15.1]} 18. Qb2
{[%clk 0:01:58.6]} 18... Bf8 {[%clk 0:02:12.3]} 19. a3 {[%clk 0:01:49.4]} 19...
Nc6 {[%clk 0:02:11.7]} 20. Bc5 {[%clk 0:01:37.3]} 20... Rac8 {[%clk 0:01:59.8]}
21. Bxf8 {[%clk 0:01:36]} 21... Kxf8 {[%clk 0:01:59.1]} 22. Nc4 {[%clk
0:01:23.3]} 22... Qb5 {[%clk 0:01:58.5]} 23. e3 {[%clk 0:01:20.8]} 23... Qh5
{[%clk 0:01:50.5]} 24. h4 {[%clk 0:00:54.8]} 24... h6 {[%clk 0:01:32]} 25. a4
{[%clk 0:00:48.1]} 25... Kg8 {[%clk 0:01:30.7]} 26. Qb1 {[%clk 0:00:26.2]} 26...
Nb4 {[%clk 0:01:25.2]} 27. Qe4 {[%clk 0:00:23.2]} 27... b6 {[%clk 0:01:12.3]}
28. Qe5 {[%clk 0:00:23.1]} 28... Qf3 {[%clk 0:01:06.9]} 29. Qf4 {[%clk 0:00:17]}
29... Qe2 {[%clk 0:01:00.3]} 30. Ne5 {[%clk 0:00:16.4]} 30... f5 {[%clk
0:00:53]} 31. Qxb4 {[%clk 0:00:16.2]} 1-0

[Event "Late-Titled-Tuesday-Blitz-December-26-2023"]
[Site "Chess.com"]
[Date "2023.12.26"]
[Round "6"]
[White "oskariot"]
[Black "SlipperySpeedster"]
[Result "0-1"]
[WhiteElo "2826"]
[BlackElo "2652"]
[TimeControl "180+1"]
[EndTime "15:05:54 PST"]
[Termination "SlipperySpeedster won by resignation"]

1. e4 {[%clk 0:02:58]} 1... e5 {[%clk 0:02:59.3]} 2. Nf3 {[%clk 0:02:58.1]} 2...
Nf6 {[%clk 0:02:59.4]} 3. Nc3 {[%clk 0:02:57.5]} 3... Nc6 {[%clk 0:02:59.2]} 4.
h3 {[%clk 0:02:57.2]} 4... Bb4 {[%clk 0:02:58.1]} 5. Nd5 {[%clk 0:02:57]} 5...
Bc5 {[%clk 0:02:57.9]} 6. c3 {[%clk 0:02:56.5]} 6... O-O {[%clk 0:02:45.8]} 7.
d3 {[%clk 0:02:50.9]} 7... Nxd5 {[%clk 0:02:39.2]} 8. exd5 {[%clk 0:02:50.7]}
8... Ne7 {[%clk 0:02:39.4]} 9. Nxe5 {[%clk 0:02:51.1]} 9... d6 {[%clk
0:02:38.3]} 10. Nf3 {[%clk 0:02:51.2]} 10... Nxd5 {[%clk 0:02:38.3]} 11. d4
{[%clk 0:02:51.8]} 11... Bb6 {[%clk 0:02:38.4]} 12. Bd3 {[%clk 0:02:48.9]} 12...
Re8+ {[%clk 0:02:37.9]} 13. Kf1 {[%clk 0:02:49.2]} 13... h6 {[%clk 0:02:36.2]}
14. g3 {[%clk 0:02:47.2]} 14... Qf6 {[%clk 0:02:35.2]} 15. Kg2 {[%clk
0:02:45.9]} 15... Bd7 {[%clk 0:02:34.8]} 16. a3 {[%clk 0:02:26.7]} 16... Bc6
{[%clk 0:02:33.4]} 17. c4 {[%clk 0:02:16.5]} 17... Ne7 {[%clk 0:02:25.1]} 18. d5
{[%clk 0:02:03.6]} 18... Bd7 {[%clk 0:02:24.9]} 19. Qc2 {[%clk 0:01:24.9]} 19...
c6 {[%clk 0:02:12.5]} 20. b4 {[%clk 0:01:02.6]} 20... cxd5 {[%clk 0:01:59.2]}
21. Bb2 {[%clk 0:01:01.6]} 21... d4 {[%clk 0:01:58.6]} 22. Be4 {[%clk
0:00:43.1]} 22... Rac8 {[%clk 0:01:18.6]} 23. Qd3 {[%clk 0:00:40.9]} 23... Nc6
{[%clk 0:01:10.3]} 24. Rae1 {[%clk 0:00:30.8]} 24... Ne5 {[%clk 0:00:59.2]} 25.
Nxe5 {[%clk 0:00:30.7]} 25... dxe5 {[%clk 0:01:00.1]} 26. c5 {[%clk 0:00:23.3]}
26... Bc7 {[%clk 0:00:57.1]} 27. Bxb7 {[%clk 0:00:20.9]} 27... Rb8 {[%clk
0:00:57.4]} 28. Qf3 {[%clk 0:00:14.1]} 28... Rxb7 {[%clk 0:00:53.7]} 29. Qxf6
{[%clk 0:00:09.5]} 29... gxf6 {[%clk 0:00:54.6]} 30. Bxd4 {[%clk 0:00:09.1]} 0-1

[Event "Late-Titled-Tuesday-Blitz-December-26-2023"]
[Site "Chess.com"]
[Date "2023.12.26"]
[Round "6"]
[White "nindjaxx8"]
[Black "Kiborg95"]
[Result "0-1"]
[WhiteElo "2587"]
[BlackElo "2838"]
[TimeControl "180+1"]
[EndTime "15:05:57 PST"]
[Termination "Kiborg95 won by resignation"]

1. d4 {[%clk 0:03:00.9]} 1... d6 {[%clk 0:02:54.6]} 2. c4 {[%clk 0:03:01.1]}
2... e5 {[%clk 0:02:53.4]} 3. e3 {[%clk 0:03:01]} 3... Nd7 {[%clk 0:02:52.3]} 4.
Nc3 {[%clk 0:03:01]} 4... g6 {[%clk 0:02:52.9]} 5. g3 {[%clk 0:02:59.6]} 5...
Bg7 {[%clk 0:02:52.3]} 6. Bg2 {[%clk 0:03:00.1]} 6... Nh6 {[%clk 0:02:51.3]} 7.
Nf3 {[%clk 0:02:59.7]} 7... O-O {[%clk 0:02:51.4]} 8. O-O {[%clk 0:02:57.6]}
8... f5 {[%clk 0:02:50.8]} 9. dxe5 {[%clk 0:02:56.4]} 9... dxe5 {[%clk
0:02:51.7]} 10. Qb3 {[%clk 0:02:51.7]} 10... c6 {[%clk 0:02:47.9]} 11. Bd2
{[%clk 0:02:48]} 11... Nf7 {[%clk 0:02:33.9]} 12. Rad1 {[%clk 0:02:47.3]} 12...
Qe7 {[%clk 0:02:31.8]} 13. Ne2 {[%clk 0:02:45.7]} 13... a5 {[%clk 0:02:28.5]}
14. Bc3 {[%clk 0:02:43.9]} 14... Re8 {[%clk 0:02:24.5]} 15. Qc2 {[%clk
0:02:33.4]} 15... a4 {[%clk 0:02:20.9]} 16. a3 {[%clk 0:02:30.6]} 16... e4
{[%clk 0:02:05.9]} 17. Nfd4 {[%clk 0:02:26]} 17... Nfe5 {[%clk 0:02:06.1]} 18.
Nf4 {[%clk 0:02:09.8]} 18... Qf7 {[%clk 0:02:01.4]} 19. Nde6 {[%clk 0:01:45.8]}
19... Rxe6 {[%clk 0:02:00.1]} 20. Nxe6 {[%clk 0:01:45.5]} 20... Qxe6 {[%clk
0:02:01]} 21. c5 {[%clk 0:01:45.1]} 21... Bf8 {[%clk 0:01:52.5]} 22. Bd4 {[%clk
0:01:41]} 22... Qc4 {[%clk 0:01:39.6]} 23. Qb1 {[%clk 0:01:36.5]} 23... Nd3
{[%clk 0:01:31.8]} 24. Rd2 {[%clk 0:01:31.7]} 24... Bxc5 {[%clk 0:01:29.2]} 25.
Bxc5 {[%clk 0:01:21.5]} 25... N7xc5 {[%clk 0:01:28.1]} 26. Rfd1 {[%clk
0:01:21.9]} 26... Be6 {[%clk 0:01:27.8]} 27. Bf1 {[%clk 0:01:21.6]} 27... Qa2
{[%clk 0:01:20.7]} 28. Qc2 {[%clk 0:01:20.3]} 28... Bb3 {[%clk 0:01:18.5]} 29.
Qb1 {[%clk 0:01:21.2]} 29... Qxb1 {[%clk 0:01:17]} 30. Rxb1 {[%clk 0:01:18.9]}
30... Rd8 {[%clk 0:01:14.8]} 31. Rc1 {[%clk 0:01:17.2]} 31... Rd5 {[%clk
0:01:01.7]} 32. Rc3 {[%clk 0:01:12.1]} 32... b6 {[%clk 0:01:01.9]} 33. Be2
{[%clk 0:01:06.8]} 33... Ne5 {[%clk 0:01:02.1]} 34. Rxd5 {[%clk 0:01:04.5]}
34... cxd5 {[%clk 0:01:01.9]} 35. Kf1 {[%clk 0:01:03.2]} 35... Bc4 {[%clk
0:01:01.5]} 36. Bxc4 {[%clk 0:00:55.1]} 36... Nxc4 {[%clk 0:01:02.4]} 37. Rc2
{[%clk 0:00:54.8]} 37... Nd3 {[%clk 0:01:02]} 38. Ke2 {[%clk 0:00:53.6]} 38...
Ndxb2 {[%clk 0:01:01.1]} 39. h4 {[%clk 0:00:52.2]} 39... h5 {[%clk 0:01:00.8]}
40. Rc1 {[%clk 0:00:51.1]} 40... Kf7 {[%clk 0:00:59.3]} 41. Rb1 {[%clk
0:00:46.6]} 41... Ke6 {[%clk 0:00:57.7]} 42. Rc1 {[%clk 0:00:41.8]} 42... Kd6
{[%clk 0:00:55.8]} 43. Rh1 {[%clk 0:00:40.4]} 43... Nxa3 {[%clk 0:00:52.5]} 44.
Rb1 {[%clk 0:00:39.1]} 44... Nxb1 {[%clk 0:00:52.2]} 0-1

[Event "Late-Titled-Tuesday-Blitz-December-26-2023"]
[Site "Chess.com"]
[Date "2023.12.26"]
[Round "6"]
[White "ilushka"]
[Black "tripledes"]
[Result "1-0"]
[WhiteElo "2447"]
[BlackElo "2223"]
[TimeControl "180+1"]
[EndTime "15:05:57 PST"]
[Termination "ilushka won by resignation"]

1. e4 {[%clk 0:03:00.9]} 1... c6 {[%clk 0:02:59.1]} 2. Nf3 {[%clk 0:02:59.9]}
2... d5 {[%clk 0:03:00]} 3. Nc3 {[%clk 0:03:00.5]} 3... dxe4 {[%clk 0:02:56.5]}
4. Nxe4 {[%clk 0:03:01.4]} 4... Nf6 {[%clk 0:02:56.9]} 5. Nxf6+ {[%clk
0:03:00.7]} 5... exf6 {[%clk 0:02:57.8]} 6. Bc4 {[%clk 0:02:59.8]} 6... Bd6
{[%clk 0:02:57.7]} 7. Qe2+ {[%clk 0:02:58.3]} 7... Be7 {[%clk 0:02:57.5]} 8. O-O
{[%clk 0:02:57.8]} 8... O-O {[%clk 0:02:57.7]} 9. d3 {[%clk 0:02:53.6]} 9... Bd6
{[%clk 0:02:57.3]} 10. h3 {[%clk 0:02:40.8]} 10... a5 {[%clk 0:02:54.5]} 11. a4
{[%clk 0:02:40.5]} 11... Qc7 {[%clk 0:02:43.1]} 12. Be3 {[%clk 0:02:36.5]} 12...
Nd7 {[%clk 0:02:39.1]} 13. Rfe1 {[%clk 0:02:34.1]} 13... Ne5 {[%clk 0:02:27.9]}
14. Nxe5 {[%clk 0:02:33.4]} 14... fxe5 {[%clk 0:02:28.8]} 15. Qf3 {[%clk
0:02:19.3]} 15... Bd7 {[%clk 0:02:25.9]} 16. Rad1 {[%clk 0:02:13.6]} 16... Rae8
{[%clk 0:02:21.9]} 17. d4 {[%clk 0:02:09.9]} 17... e4 {[%clk 0:02:12.9]} 18. Qh5
{[%clk 0:02:00.3]} 18... Be6 {[%clk 0:02:02.5]} 19. Bxe6 {[%clk 0:01:56]} 19...
Rxe6 {[%clk 0:02:03.4]} 20. c3 {[%clk 0:01:46.3]} 20... f5 {[%clk 0:02:01.7]}
21. d5 {[%clk 0:01:36.3]} 21... cxd5 {[%clk 0:01:52.3]} 22. Rxd5 {[%clk
0:01:35.5]} 22... f4 {[%clk 0:01:33.2]} 23. Bd4 {[%clk 0:01:34.5]} 23... b6
{[%clk 0:01:29.1]} 24. Qg4 {[%clk 0:01:17.5]} 24... Qf7 {[%clk 0:00:58.2]} 25.
Rf5 {[%clk 0:01:10.2]} 25... Qg6 {[%clk 0:00:31.7]} 26. Rg5 {[%clk 0:01:03.8]}
26... Qxg5 {[%clk 0:00:24.5]} 27. Qxg5 {[%clk 0:01:02.3]} 27... Rg6 {[%clk
0:00:24.7]} 28. Qd5+ {[%clk 0:01:00.7]} 28... Kh8 {[%clk 0:00:24.3]} 29. Rxe4
{[%clk 0:01:00.6]} 29... f3 {[%clk 0:00:22.2]} 30. g4 {[%clk 0:00:55.2]} 30...
Bf4 {[%clk 0:00:13.7]} 31. Rxf4 {[%clk 0:00:52.6]} 1-0

[Event "Late-Titled-Tuesday-Blitz-December-26-2023"]
[Site "Chess.com"]
[Date "2023.12.26"]
[Round "6"]
[White "Fan_Of_Chucky"]
[Black "MalcolmPein"]
[Result "1-0"]
[WhiteElo "2467"]
[BlackElo "2337"]
[TimeControl "180+1"]
[EndTime "15:05:58 PST"]
[Termination "Fan_Of_Chucky won by resignation"]

1. d4 {[%clk 0:02:19.9]} 1... Nf6 {[%clk 0:02:59.5]} 2. c4 {[%clk 0:02:20.8]}
2... c5 {[%clk 0:02:58.1]} 3. Nf3 {[%clk 0:02:21.7]} 3... cxd4 {[%clk
0:02:57.9]} 4. Nxd4 {[%clk 0:02:22.1]} 4... e5 {[%clk 0:02:58.2]} 5. Nb5 {[%clk
0:02:22.5]} 5... d5 {[%clk 0:02:53.6]} 6. cxd5 {[%clk 0:02:23.4]} 6... Bc5
{[%clk 0:02:52.8]} 7. N5c3 {[%clk 0:02:19.9]} 7... O-O {[%clk 0:02:50.1]} 8. g3
{[%clk 0:02:19]} 8... Re8 {[%clk 0:02:48.4]} 9. Bg2 {[%clk 0:02:18.8]} 9... e4
{[%clk 0:02:46.3]} 10. O-O {[%clk 0:02:07.1]} 10... Bf5 {[%clk 0:02:45.2]} 11.
a3 {[%clk 0:02:00.9]} 11... Nbd7 {[%clk 0:02:26.5]} 12. b4 {[%clk 0:02:00.1]}
12... Bb6 {[%clk 0:02:27.1]} 13. Nb5 {[%clk 0:01:50.1]} 13... Ne5 {[%clk
0:02:12.4]} 14. N1c3 {[%clk 0:01:42.6]} 14... Rc8 {[%clk 0:02:07.1]} 15. Qb3
{[%clk 0:01:35.7]} 15... a6 {[%clk 0:02:01.6]} 16. Rd1 {[%clk 0:01:02.1]} 16...
axb5 {[%clk 0:02:00.7]} 17. Nxb5 {[%clk 0:01:02.4]} 17... e3 {[%clk 0:01:58.1]}
18. Bxe3 {[%clk 0:01:00.2]} 18... Bxe3 {[%clk 0:01:56]} 19. Qxe3 {[%clk
0:00:52.9]} 19... Neg4 {[%clk 0:01:24.8]} 20. Qf4 {[%clk 0:00:50.2]} 20... Bd7
{[%clk 0:01:23]} 21. Nd6 {[%clk 0:00:46.5]} 21... Rxe2 {[%clk 0:01:15.5]} 22.
Nxc8 {[%clk 0:00:46.8]} 22... Rxf2 {[%clk 0:01:15.2]} 23. Qb8 {[%clk 0:00:40.3]}
23... Rxg2+ {[%clk 0:00:33.4]} 24. Kxg2 {[%clk 0:00:38.4]} 24... Ne3+ {[%clk
0:00:33.4]} 25. Kg1 {[%clk 0:00:34]} 25... Nxd1 {[%clk 0:00:29.1]} 26. Ne7+
{[%clk 0:00:33.1]} 1-0

[Event "Late-Titled-Tuesday-Blitz-December-26-2023"]
[Site "Chess.com"]
[Date "2023.12.26"]
[Round "6"]
[White "czasnaszachy"]
[Black "Bryanl106"]
[Result "0-1"]
[WhiteElo "2388"]
[BlackElo "2563"]
[TimeControl "180+1"]
[EndTime "15:06:02 PST"]
[Termination "Bryanl106 won by resignation"]

1. e4 {[%clk 0:03:00.9]} 1... e5 {[%clk 0:02:59.7]} 2. Nf3 {[%clk 0:03:00.8]}
2... Nc6 {[%clk 0:02:59.7]} 3. Bb5 {[%clk 0:03:00.8]} 3... a6 {[%clk 0:03:00.1]}
4. Ba4 {[%clk 0:03:00.9]} 4... Nf6 {[%clk 0:03:00.5]} 5. O-O {[%clk 0:03:01]}
5... Be7 {[%clk 0:03:01]} 6. Re1 {[%clk 0:03:01]} 6... b5 {[%clk 0:03:01.4]} 7.
Bb3 {[%clk 0:03:00.6]} 7... d6 {[%clk 0:03:02.1]} 8. c3 {[%clk 0:03:00.1]} 8...
a5 {[%clk 0:03:02.3]} 9. a3 {[%clk 0:02:47.8]} 9... O-O {[%clk 0:03:01.5]} 10.
h3 {[%clk 0:02:47.2]} 10... a4 {[%clk 0:03:01.7]} 11. Ba2 {[%clk 0:02:47]} 11...
Be6 {[%clk 0:02:59.5]} 12. d4 {[%clk 0:02:44.5]} 12... Bxa2 {[%clk 0:02:53.3]}
13. Rxa2 {[%clk 0:02:44.6]} 13... Re8 {[%clk 0:02:47.2]} 14. Qd3 {[%clk
0:02:34.9]} 14... Qb8 {[%clk 0:02:42]} 15. Nbd2 {[%clk 0:02:34.6]} 15... Bf8
{[%clk 0:02:40.7]} 16. Nf1 {[%clk 0:02:33.3]} 16... d5 {[%clk 0:02:28.6]} 17.
Nxe5 {[%clk 0:02:13.2]} 17... Nxe5 {[%clk 0:02:18.8]} 18. dxe5 {[%clk
0:02:13.1]} 18... Rxe5 {[%clk 0:02:19.1]} 19. Ng3 {[%clk 0:02:08.7]} 19... Qe8
{[%clk 0:02:16.3]} 20. f3 {[%clk 0:01:49.9]} 20... Rd8 {[%clk 0:02:12.7]} 21.
Qe2 {[%clk 0:01:43.5]} 21... dxe4 {[%clk 0:02:11.8]} 22. fxe4 {[%clk 0:01:43]}
22... Qe6 {[%clk 0:02:10.4]} 23. Ra1 {[%clk 0:01:42.4]} 23... Bc5+ {[%clk
0:02:10.1]} 24. Kh1 {[%clk 0:01:40.5]} 24... h5 {[%clk 0:02:01.5]} 25. Bf4
{[%clk 0:01:38.6]} 25... h4 {[%clk 0:01:58]} 26. Bxe5 {[%clk 0:01:37.5]} 26...
Qxe5 {[%clk 0:01:57.8]} 27. Nf5 {[%clk 0:01:36.1]} 27... Qf4 {[%clk 0:01:54.8]}
28. Rad1 {[%clk 0:01:26.5]} 28... Rxd1 {[%clk 0:01:46.3]} 29. Rxd1 {[%clk
0:00:48.7]} 29... g6 {[%clk 0:01:37.1]} 30. Rf1 {[%clk 0:00:45.5]} 30... Qg5
{[%clk 0:01:36.3]} 31. Nd4 {[%clk 0:00:43.3]} 31... Nh5 {[%clk 0:01:14.6]} 32.
Qf3 {[%clk 0:00:36]} 32... Ng3+ {[%clk 0:01:13.6]} 33. Kg1 {[%clk 0:00:35.8]}
33... Nxf1 {[%clk 0:01:11.9]} 34. Kxf1 {[%clk 0:00:32.6]} 34... Qc1+ {[%clk
0:01:10.9]} 35. Kf2 {[%clk 0:00:24.4]} 35... Bxd4+ {[%clk 0:01:08.4]} 36. cxd4
{[%clk 0:00:23.8]} 36... Qxb2+ {[%clk 0:01:08.5]} 37. Kg1 {[%clk 0:00:23]} 37...
Qxd4+ {[%clk 0:01:08.6]} 38. Kh2 {[%clk 0:00:22.2]} 38... Qe5+ {[%clk
0:01:06.2]} 39. Kh1 {[%clk 0:00:22]} 39... c5 {[%clk 0:01:01.9]} 40. Qe2 {[%clk
0:00:18]} 40... b4 {[%clk 0:01:01.3]} 41. axb4 {[%clk 0:00:17]} 41... cxb4
{[%clk 0:01:02.2]} 0-1

[Event "Late-Titled-Tuesday-Blitz-December-26-2023"]
[Site "Chess.com"]
[Date "2023.12.26"]
[Round "6"]
[White "shaya01"]
[Black "Defenstrator"]
[Result "0-1"]
[WhiteElo "2217"]
[BlackElo "2459"]
[TimeControl "180+1"]
[EndTime "15:06:03 PST"]
[Termination "Defenstrator won by resignation"]

1. e4 {[%clk 0:03:00.9]} 1... c5 {[%clk 0:03:00.1]} 2. Nf3 {[%clk 0:02:58.4]}
2... d6 {[%clk 0:02:59.8]} 3. d4 {[%clk 0:02:56.8]} 3... cxd4 {[%clk 0:03:00.6]}
4. Nxd4 {[%clk 0:02:51.3]} 4... Nf6 {[%clk 0:03:01]} 5. Nc3 {[%clk 0:02:45.7]}
5... Nfd7 {[%clk 0:03:01.1]} 6. g3 {[%clk 0:02:41.3]} 6... Nc6 {[%clk
0:02:58.5]} 7. Nde2 {[%clk 0:02:39.9]} 7... g6 {[%clk 0:02:47.6]} 8. Bg2 {[%clk
0:02:40]} 8... Bg7 {[%clk 0:02:47.6]} 9. O-O {[%clk 0:02:39.4]} 9... O-O {[%clk
0:02:47.9]} 10. Nd5 {[%clk 0:02:32.3]} 10... e6 {[%clk 0:02:44.2]} 11. Ndc3
{[%clk 0:02:30.7]} 11... Nb6 {[%clk 0:02:38.9]} 12. Nb5 {[%clk 0:02:21.5]} 12...
d5 {[%clk 0:02:37.3]} 13. exd5 {[%clk 0:02:21.4]} 13... Nxd5 {[%clk 0:02:36.4]}
14. c4 {[%clk 0:02:20.4]} 14... Ndb4 {[%clk 0:02:36]} 15. Qxd8 {[%clk
0:02:14.3]} 15... Rxd8 {[%clk 0:02:35]} 16. a3 {[%clk 0:02:08.2]} 16... Nd3
{[%clk 0:02:24.8]} 17. Bg5 {[%clk 0:02:05.6]} 17... Rd7 {[%clk 0:02:16.9]} 18.
Rad1 {[%clk 0:01:40.7]} 18... Nxb2 {[%clk 0:02:14.3]} 19. Rxd7 {[%clk
0:01:36.2]} 19... Bxd7 {[%clk 0:02:13.8]} 20. Nd6 {[%clk 0:01:34.4]} 20... Bf8
{[%clk 0:02:04.7]} 21. Nxb7 {[%clk 0:01:33]} 21... Nxc4 {[%clk 0:02:03.1]} 22.
Rc1 {[%clk 0:01:25.8]} 22... N4e5 {[%clk 0:01:55.3]} 23. f4 {[%clk 0:01:22.8]}
23... Bxa3 {[%clk 0:01:42.7]} 24. Rd1 {[%clk 0:01:12.5]} 24... Rb8 {[%clk
0:01:40.5]} 25. fxe5 {[%clk 0:01:00.5]} 25... Rxb7 {[%clk 0:01:38.7]} 26. Rxd7
{[%clk 0:00:57.4]} 26... Rxd7 {[%clk 0:01:37.8]} 27. Bxc6 {[%clk 0:00:57]} 27...
Rc7 {[%clk 0:01:22.7]} 28. Be4 {[%clk 0:00:56.4]} 28... Bb2 {[%clk 0:01:15.3]}
29. Bf6 {[%clk 0:00:53.3]} 29... a5 {[%clk 0:01:09.4]} 30. Kf2 {[%clk
0:00:38.9]} 30... a4 {[%clk 0:01:09.4]} 31. Ke3 {[%clk 0:00:35.6]} 31... a3
{[%clk 0:01:09.7]} 32. Bb1 {[%clk 0:00:35.7]} 32... Rb7 {[%clk 0:00:57.7]} 33.
Ba2 {[%clk 0:00:35.4]} 33... Ba1 {[%clk 0:00:49.8]} 34. Be7 {[%clk 0:00:30.7]}
34... Bxe5 {[%clk 0:00:45.2]} 35. Bxa3 {[%clk 0:00:19.5]} 35... Ra7 {[%clk
0:00:45.3]} 0-1

[Event "Late-Titled-Tuesday-Blitz-December-26-2023"]
[Site "Chess.com"]
[Date "2023.12.26"]
[Round "6"]
[White "GlavkonVVS"]
[Black "Jospem"]
[Result "0-1"]
[WhiteElo "2528"]
[BlackElo "3066"]
[TimeControl "180+1"]
[EndTime "15:06:04 PST"]
[Termination "Jospem won by resignation"]

1. c4 {[%clk 0:03:00.9]} 1... c5 {[%clk 0:03:00.4]} 2. Nc3 {[%clk 0:03:00.4]}
2... Nc6 {[%clk 0:03:01]} 3. g3 {[%clk 0:03:01]} 3... g6 {[%clk 0:03:01.6]} 4.
Bg2 {[%clk 0:03:01.7]} 4... Bg7 {[%clk 0:03:02.3]} 5. Nf3 {[%clk 0:03:02.4]}
5... d6 {[%clk 0:03:03]} 6. d3 {[%clk 0:03:03.1]} 6... e6 {[%clk 0:03:03.6]} 7.
O-O {[%clk 0:03:03.4]} 7... Nge7 {[%clk 0:03:04.2]} 8. a3 {[%clk 0:03:04.1]}
8... O-O {[%clk 0:03:04.7]} 9. Rb1 {[%clk 0:03:04.7]} 9... b6 {[%clk 0:03:05.3]}
10. Bg5 {[%clk 0:03:05]} 10... h6 {[%clk 0:03:05]} 11. Bd2 {[%clk 0:03:05.1]}
11... Bb7 {[%clk 0:03:05.4]} 12. b4 {[%clk 0:03:05.7]} 12... Rb8 {[%clk
0:03:05.4]} 13. Qc1 {[%clk 0:03:00.5]} 13... Kh7 {[%clk 0:03:04.8]} 14. h4
{[%clk 0:03:00.1]} 14... Nd4 {[%clk 0:03:04.7]} 15. Nxd4 {[%clk 0:02:57.9]}
15... cxd4 {[%clk 0:03:05.2]} 16. Nd1 {[%clk 0:02:42.4]} 16... Bxg2 {[%clk
0:03:04.6]} 17. Kxg2 {[%clk 0:02:42.6]} 17... Qd7 {[%clk 0:03:03.7]} 18. e4
{[%clk 0:02:39.3]} 18... f5 {[%clk 0:02:56.3]} 19. f4 {[%clk 0:02:34.9]} 19...
Rbc8 {[%clk 0:02:52.5]} 20. Nf2 {[%clk 0:02:27.2]} 20... fxe4 {[%clk 0:02:51.8]}
21. dxe4 {[%clk 0:02:22.3]} 21... d5 {[%clk 0:02:43.8]} 22. exd5 {[%clk
0:02:18.2]} 22... Nxd5 {[%clk 0:02:39]} 23. Kg1 {[%clk 0:01:54.1]} 23... Nc3
{[%clk 0:02:33.1]} 24. Bxc3 {[%clk 0:01:54.1]} 24... dxc3 {[%clk 0:02:33.4]} 25.
c5 {[%clk 0:01:51.6]} 25... bxc5 {[%clk 0:02:33.3]} 26. bxc5 {[%clk 0:01:51.7]}
26... Rxc5 {[%clk 0:02:32.4]} 27. Qc2 {[%clk 0:01:36.6]} 27... Rd5 {[%clk
0:02:32.8]} 28. Rfd1 {[%clk 0:01:33.4]} 28... Qc6 {[%clk 0:02:28.8]} 29. Rxd5
{[%clk 0:01:24.7]} 29... Qxd5 {[%clk 0:02:29.7]} 30. Rd1 {[%clk 0:01:24.7]}
30... Qc5 {[%clk 0:02:29.3]} 31. Rd7 {[%clk 0:01:23.3]} 31... Rc8 {[%clk
0:02:18]} 32. h5 {[%clk 0:01:16.5]} 32... Qxh5 {[%clk 0:02:07.1]} 33. Ne4 {[%clk
0:01:16.1]} 33... Qf5 {[%clk 0:01:54.4]} 34. Qd3 {[%clk 0:00:55]} 34... e5
{[%clk 0:01:26.3]} 35. Nxc3 {[%clk 0:00:43.1]} 35... Qxd3 {[%clk 0:01:23.3]} 36.
Rxd3 {[%clk 0:00:42.7]} 36... exf4 {[%clk 0:01:24.2]} 37. Ne4 {[%clk 0:00:40.3]}
37... Rc4 {[%clk 0:01:19.6]} 38. Nd6 {[%clk 0:00:34.9]} 38... Rd4 {[%clk
0:01:19.5]} 39. Rxd4 {[%clk 0:00:28.5]} 39... Bxd4+ {[%clk 0:01:20.4]} 40. Kg2
{[%clk 0:00:28.9]} 40... fxg3 {[%clk 0:01:21.1]} 41. Nb5 {[%clk 0:00:28]} 41...
Bf2 {[%clk 0:01:20.3]} 42. Nd6 {[%clk 0:00:21.1]} 42... g5 {[%clk 0:01:19.6]}
43. Ne4 {[%clk 0:00:17.6]} 43... Kg6 {[%clk 0:01:20.1]} 44. a4 {[%clk
0:00:17.5]} 44... h5 {[%clk 0:01:20]} 45. a5 {[%clk 0:00:15.3]} 45... g4 {[%clk
0:01:20.3]} 46. a6 {[%clk 0:00:14.9]} 46... h4 {[%clk 0:01:18.5]} 47. Nxf2
{[%clk 0:00:15.3]} 47... gxf2 {[%clk 0:01:19.4]} 48. Kxf2 {[%clk 0:00:15.9]}
48... Kf5 {[%clk 0:01:19.3]} 49. Kg2 {[%clk 0:00:16.3]} 49... Ke4 {[%clk
0:01:19.8]} 50. Kf2 {[%clk 0:00:16.8]} 50... Kf4 {[%clk 0:01:19.8]} 51. Kg2
{[%clk 0:00:17.2]} 51... Ke3 {[%clk 0:01:20.5]} 0-1